{"text_format":"3","workbook":"xlsx","n_sheets":2,"sheets":["MDNG60","Translation"],"not_rendered":{"images":10,"defined_names":1},"read":"whole","date_system":"1900"}

{"sheet":"MDNG60","index":0,"n_rows":63,"n_cols":26,"rows_kept":63,"merged":[[1,12,1,13],[2,12,2,13],[3,4,4,4],[4,12,4,13],[4,18,5,18],[4,19,5,25],[5,12,5,13],[16,6,16,7],[28,3,33,3],[39,15,41,20],[50,1,52,1],[50,9,52,9],[52,10,54,10],[52,18,54,18],[57,22,57,25],[58,22,60,25],[61,22,61,23],[62,22,62,23]]}
[]
[null,"Zvolte jazyk",{"$nulls":4},{"$f":"Translation!A3","v":"Šířka otvoru (A)"},{"$nulls":18},{"$f":"Translation!A35","v":"Prosím, vyplňte pole, která jsou označena barevně!"}]
[null,"Select a language",{"$nulls":4},{"$f":"Translation!A4","v":"Výška otvoru (B)"}]
[null,"Wählen Sie eine Sprache:",null,null,"CZ"]
[null,"Wybierz język:",{"$nulls":4},{"$f":"Translation!A30&\" (W)\"","v":"Doporučená objedací šířka rámu (W)"},{"$nulls":5},{"$f":"IF(M2=\"\",\"W = A - 30\", M2-30)","v":"W = A - 30"},{"$nulls":5},"E",{"$f":"Translation!A7","v":"Příklady kotvení"}]
[null,"Sélectionner une langue:",{"$nulls":4},{"$f":"Translation!A31&\" (H)\"","v":"Doporučená objedací výška rámu (H)"},{"$nulls":5},{"$f":"IF(M3=\"\",\"H = B - 15\", M3-15)","v":"H = B - 15"}]
[null,"Kies een taal:"]
[null,"Valige keel"]
[null,"Valitse kieli"]
[null,"Выбрать язык"]
[null,"Välj ett språk",{"$nulls":16},{"$f":"Translation!A8","v":"Montáž skrz rám"}]
[]
[]
[]
[]
[]
[{"$nulls":6},{"$f":"IF(M2=\"\",M5, \"W = \"& M5)","v":"W = A - 30"},{"$nulls":3},{"$f":"Translation!A40","v":"Kotící body"}]
{"$rows_empty":8}
[{"$nulls":18},{"$f":"Translation!A9","v":"Montáž přes kotvící plech"}]
[]
[]
[{"$nulls":3},{"$f":"IF(M3=\"\",M6, \"H= \"& M6)","v":"H = B - 15"}]
{"$rows_empty":10}
[{"$nulls":15},{"$f":"Translation!A13","v":"* při montáži Mandooru NG skrz rám. Při montáži přes kotvící plech hloubka stavebního otvoru minimálně 100mm."}]
{"$rows_empty":10}
[null,{"$f":"IF(D2=\"\",\"A\", D2)","v":"A"},{"$nulls":7},{"$f":"IF(M2=\"\",\"A\", M2)","v":"A"},{"$nulls":10},{"$f":"Translation!A11","v":"Izolace"},null,null,{"$f":"Translation!A10","v":"Nezbytný volný prostor"}]
[]
[{"$nulls":10},{"$f":"IF(M4=\"\",\"A\", M4)","v":"A"},{"$nulls":7},{"$f":"IF(U4=\"\",\"A\", U4)","v":"A"},null,{"$f":"Translation!A21","v":"Beton, pálená cihla, pórobeton"}]
[]
[]
[]
[]
[]
[{"$nulls":22},{"$f":"Translation!A14","v":"Mandoor NG s přeruš. tepl. mostem "}]
[]
[]
[{"$nulls":22},{"$f":"Translation!A15","v":"Typ montáže:"},null,{"$f":"Translation!A16","v":"Verze:"},{"$f":"Translation!A17","v":"Formát: "}]
[null,{"$f":"Translation!A32&\" \"&Translation!A33&\" \"&Translation!A34","v":"Plocha na kterou se montuje, musí být rovná a pevná. Otvor musí být svislý a obdelníkový. Podlaha musí být v místě dveří rovná a vodorovná."},{"$nulls":20},{"$f":"Translation!A18","v":"Do otvoru"},null,2035,"A4"]

{"sheet":"Translation","index":1,"n_rows":47,"n_cols":16,"rows_kept":47,"hidden":true}
["MDNG60",{"$nulls":5},"CZ","EN","DE","PL","FR","NL","ET","FI","RU","SV"]
[{"$f":"HLOOKUP(MDNG60!E4,G1:P2,2,FALSE)","v":1},{"$nulls":5},1,{"$f":"G2+1","v":2},{"$f":"H2+1","v":3},4,5,6,7,8,9,10]
[{"$f":"VLOOKUP($G3,$G$2:$P$47,A$2,FALSE)","v":"Šířka otvoru (A)"},{"$nulls":5},"Šířka otvoru (A)","Opening width (A)","Lichte Breite (A)","Szerokość otworu (A)","Largeer de baie (A)","Dagmaat breedte (A)","Ava laius (A)","Oviaukon leveys (A)","Ширина проема (A)"]
["Výška otvoru (B)",{"$nulls":5},"Výška otvoru (B)","Opening height (B)","Lichte Höhe (B)","Wysokość otworu (B)","Hauteur de baie (B)","Dagmaat hoogte (B)","Ava kõrgus (B)","Oviaukon korkeus (B)","Высота проема (B)"]
["Doporučená šířká rámu (W)",{"$nulls":5},"Doporučená šířká rámu (W)","Recommended width of frame (W)","empfohlene Rahmenbreite (W)","Zalecana szerokość ościeżnicy","Largeur recommandée du cadre","Aanbevolen breedte van het frame","Soovitatav raami laius (W)","Kehyksen suositeltu leveys (W)","Рекомендуемая ширина рамы (W)"]
["Doporučená výška rámu (H)",{"$nulls":5},"Doporučená výška rámu (H)","Recommended height of frame (W)","empfohlene Rahmenhöhe (H)","Zalecana wysokość ościeżnicy","Hauteur recommandé du cadre","Aanbevolen hoogte van het frame","Soovitatav raami kõrgus (W)","Kehyksen suositeltu korkeus (W)","Рекомендуемая высота рамы (H)"]
["Příklady kotvení",{"$nulls":5},"Příklady kotvení","Examples of fixing","Bespiel der Befestigung","Przykłady mocowania","Exemples de fixation","Voorbeelden van bevestiging","Kinnitamise näited","Esimerkkejä kiinnityksestä","Примеры установки"]
["Montáž skrz rám",{"$nulls":5},"Montáž skrz rám","Fixing through the frame","Montage durch den Rahmen","Montaż przez ościeżnice ","Fixation à travers le cadre","Bevestigen door het frame","Läbi raami kinnitamine","Kiinnitys kehyksen läpi","Монтаж с помощью рамы"]
["Montáž přes kotvící plech",{"$nulls":5},"Montáž přes kotvící plech","Fixing using steel plates","Montage mit den Befestigungsplatten","Montaż za pomocą płyt stalowych","Fixation avec plaques métalliques","Bevestigen door middel van stalen plaatjes","Metallplaatide abil kinnitamine","Kiinnitys teräslevyillä","Монтаж с использованием анкерных пластин"]
["Nezbytný volný prostor",{"$nulls":5},"Nezbytný volný prostor","NECESSARY FREE ROOM","BENÖTIGTER FREIRAUM","NIEZBĘDNA WOLNA PRZESTRZEŃ","Espace libre neccessarie","benodigde vrije ruimte","Vajalik vaba ruum ","TARVITTAVA VAPAA TILA","Необходимое свободное пространство"]
["Izolace",{"$nulls":5},"Izolace","Insulation","Dämmung","Izolacja","Isolation","Isolatie","Isolatsioon","Eriste","Изоляционный материал"]
["Zděná / ocelová konstukce budovy",{"$nulls":5},"Zděná / ocelová konstukce budovy","Building structure (steel/bricks/concrete)","Mauer/Stahlkonstruktion des Gebäudes","Konstrukacja budynku (stalowa/ceglana/ betonowa)","Structure du bâtiment (acier / briques / Béton)","Bouwstructuur","Ehitusmaterjal (metall/telliskivid/tsement)","Rakenne (teräs / tiili / betoni)","Материал здания (сталь/кирпич/бетон)"]
["* při montáži Mandooru NG skrz rám. Při montáži přes kotvící plech hloubka stavebního otvoru minimálně 100mm.",{"$nulls":5},"* při montáži Mandooru NG skrz rám. Při montáži přes kotvící plech hloubka stavebního otvoru minimálně 100mm.","* for fixing through the frame.\nFor fixing with steel plates the depth of opening min 100mm ","* bei der Montage von Mandoor NG durch den Rahmen. Bei der Montage mit den Befestigungsplatten muss die Bauöffnung eine Mindestiefe von 100mm haben.","* podczas montażu Mandoor NG przez ościeżnice. Przy montażu za pomocą płyt stalowych minimalna głębokość otowru wynosi 100 mm","* pour fixation à travers le cadre.\nPour fixation avec plaques métalliques, la profondeur d'ouverture mini est de 100 mm","Voor het bevestigen door het frame    Voor bevestiging met de stalen plaatjes moet de binnenslag 100mm zijn       ","*läbi raami kinnitamiseks.                         Metallplaatide abil kinnitamiseks minimaalne ava sügavus 100mm.","*kiinnittäminen rungon läpi.\nTeräslevyjen kiinnittämistä varten aukon syvyys on vähintään 100 mm","* для установки с помощью рамы. Для установки с использованием анкерных пластин глубина проема должна быть не меньше 100 мм"]
["Mandoor NG s přeruš. tepl. mostem ",{"$nulls":5},"Mandoor NG s přeruš. tepl. mostem ","Mandoor NG with broken thermal bribge","Mandoor NG mit thermischer Trennung","Mandoor NG ze złamanym mostkiem termicznym","Mandoor NG avec rupture de pont thermique","Loopdeur NG met thermische onderbreking","Mandoor NG termoisolatsiooniga","Mandoor NG lämpöeristyksellä","Калитка Mandoor NG с терморазрывом"]
["Typ montáže:",{"$nulls":5},"Typ montáže:","Installation:","Typ der Montage","Typ montażu:","Installation : ","Installatie","Paigaldus:","Asennus","Тип монтажа"]
["Verze:",{"$nulls":5},"Verze:","Version:","Version:","Wersja:","Version:","Versie:","Versioon:","Versio:","Версия:"]
["Formát: ",{"$nulls":5},"Formát: ","Sheet:","Format:","Format:","Format:","Formaat:","Formaat:","Lista:","Лист:"]
["Do otvoru",{"$nulls":5},"Do otvoru","In the opening","In die Öffnung","W otworze:","Dans l'ouverture","In de opening","Avas","Oven aukossa","В проем"]
[{"$f":"VLOOKUP($G19,$G$2:$P$47,A$2,FALSE)","v":"Za otvor"},{"$nulls":5},"Za otvor","Behind the opening","Hinter die Öffnung","Za otworem:","Derrière l'ouverture","Achter de opening","Ava taga","Oven aukon takana","За проемом"]
["Ocel",{"$nulls":5},"Ocel","Steel","Stahl","Stal","Acier","Staal","Metall","Teräs","Сталь"]
["Beton, pálená cihla, pórobeton",{"$nulls":5},"Beton, pálená cihla, pórobeton","Concrete, bricks","Beton, Ziegel, poriger Beton","Beton, Cegła, Beton komórkowy","Béton, briques","Beton, Baksteen","Tsement, telliskivi","Betoni, tiilet","Бетон, кирпич"]
["** Doporučená hodnota přesazení rámového profilu za hranu otvoru.",{"$nulls":5},"** Doporučená hodnota přesazení rámového profilu za hranu otvoru.","**Recommended overlap of the frame behind the opening","** emfohlener Maß der Versetzung des Rahmensprofils hinter die Öffnungskannte","**Zalecana wartość przesunięcia profilu ramy za krawędź otworu.","** Chevauchement recommandé du cadre derrière l'ouverture","**Aan te raden overlapping achter de opening","**Soovitatav raami kattumine ava taga","**Suositeltava kehyksen päällekkäisyys aukon taakse","** Рекомендуется смещение уровня рамы за проемом"]
["Mandoor NG bez přeruš. tep. mostu",{"$nulls":5},"Mandoor NG bez přeruš. tep. mostu","Mandoor NG w/o broken thermal bribge","Mandoor NG ohne thermische Trennung","Mandoor NG bez złamania mostka termicznego","Mandoor NG sans rupture de pont thermique","Loopdeur NG met thermische onderbreking","Mandoor NG ilma termoisolatsioonita","Mandoor NG ilman lämpöeristystä","Калитка Mandoor NG без терморазрывом"]
["Montáž za otvor otevírání ven",{"$nulls":5},"Montáž za otvor otevírání ven","Installation behind the opening, open outwards","Montage hinter die Öffnung, Öffnungsrichtung nach außen","Montaż za otworem, kierunek otwierania na zewnątrz","Installation derrière l'ouverture, ouverte vers l'extérieur","Installatie achter de opening, naar buiten draaiend","Paigaldus ava taha, avanemine väljapoole","Asennus aukon taakse, avaa ulospäin","Монтаж за проемом, открытие наружу"]
["Otevírání ven",{"$nulls":5},"Otevírání ven","Open outwards","Öffnungsrichtung nach außen","Kierunek otwierania na zewnątrz","Ouverte vers l'extérieur","Naar buiten draaiend","Avanemine väljapoole","Avaa ulospäin","Открывание наружу","Oppnas utat"]
["ven",{"$nulls":5},"ven","outwards","nach außen","na zewnątrz","vers l'extérieur","Naar binnen","väljapoole","ulospäin","Наружу","Utatgaende"]
["Montáž za otvor otevírání dovnitř",{"$nulls":5},"Montáž za otvor otevírání dovnitř","Installation behind the opening, open inwards","Montage hinter die Öffnung, Öffnungsrichtung nach innen","Montaż za otworem, kierunek otwierania do wewnątrz","Installation derrière l'ouverture, ouverte vers l'intérieur","Installatie achter de opening, naar binnen draaiend","Paigaldus ava taha, avanemine sissepoole","Asennus aukon taakse, avaa sisäänpäin","Монтаж за проемом, открытие внутрь"]
["Otevírání dovnitř",{"$nulls":5},"Otevírání dovnitř","Open inwards","Öffnungsrichtung nach innen","Kierunek otwierania do wewnątrz","Ouverte vers l'intérieur","Naar binnen draaiend","Avanemine sissepoole","Avaa sisäänpäin","Открывание внутрь","Oppnas innat."]
["dovnitř",{"$nulls":5},"dovnitř","inwards","nach innen","do wewnątrz","vers l'intérieur","Naar binnen","sissepoole","sisäänpäin","Внутрь","Inatgaende"]
["Doporučená objedací šířka rámu",{"$nulls":5},"Doporučená objedací šířka rámu","Recommended width of frame for order","empfohlene Rahmenbreite - Bestellmaß","Zalecana szerokość ościeżnicy dla zamówienie","Largeur recommandée du cadre pour la commande","Aan te raden breedte van het frame voor order","Soovitatav raami laius tellimisel","Suositeltava kehyksen leveys tilausta varten","Рекоендованная ширина рамы для заказа"]
["Doporučená objedací výška rámu",{"$nulls":5},"Doporučená objedací výška rámu","Recommended height of frame for order","empfohlene Rahmenhöhe - Bestellmaß","Zalecana wysokość ościeżnicy dla zamówienie","Hauteur recommandée du cadre pour la commande","aan te raden hoogte van het frame voor order","Soovitatav raami kõrgus tellimisel","Suositeltava kehyksen korkeus tilausta varten","Рекоендованная высота рамы для заказа"]
["Plocha na kterou se montuje, musí být rovná a pevná.",{"$nulls":5},"Plocha na kterou se montuje, musí být rovná a pevná.","Surface has to be flat and stable.","Die Oberfläche für die Montage muss gerade und fest sein","Powierzchnia do montażu musi być płaska i solidna","La surface doit être lisse et stable","Het oppervlak dient vlak en stabiel te zijn","Pind peab olema sile ja stabiilne","Pinnan on oltava tasainen ja vakaa","Поверхность должна быть плоской и стабильной"]
["Otvor musí být svislý a obdelníkový.",{"$nulls":5},"Otvor musí být svislý a obdelníkový.","Furthermore the opening must be plumb and square.","Die Winkel in der Öffnung müssen rechtecking sein","Otwór musi być pionowy i prostokątny.","L'ouverture de la baie doit être parfaitement de niveau et d'equerre.","Tevens moet de dagmaat vlak en haaks zijn.","Ava peab olema täpne ja nelinurkne","Lisäksi oviaukon pitää olla pysty- ja vaakasuora sekä nelikulmainen.","Проем также должен быть ровным и прямоугольным."]
["Podlaha musí být v místě dveří rovná a vodorovná.",{"$nulls":5},"Podlaha musí být v místě dveří rovná a vodorovná.","Leveled and flat floor.","Der Boden muss gerage und waagerecht sein","Podłoga musi być płaska i wyrównana.","Sol nivelé et plat","De vloer dient vlak en genivelleerd te zijn","Loodis ja ühtlane põrand","Tasainen lattia","Пол должен быть плоским и наливным"]
[{"$f":"VLOOKUP($G35,$G$2:$P$47,A$2,FALSE)","v":"Prosím, vyplňte pole, která jsou označena barevně!"},{"$nulls":5},"Prosím, vyplňte pole, která jsou označena barevně!","Please, fill in the fields that are marked in color!","Füllen Sie bitte alle markierte Felder aus!","Prosimy o wypełnienie pól oznaczonych kolorem!","S'il vous plaît remplissez les champs qui sont marqués en couleur!","Vul a.u.b. de in kleur gemarkeerde velden in!","Palun täida värvilised väljad!","\nTäytä kentät, jotka on merkitty värillä!","Пожалуйста, заполните поля обозначенные цветом!"]
["Směr otevírání",{"$nulls":5},"Směr otevírání","Direction of opening","Öffnungsrichtung","Kierunek otwierania","Direction d'ouverture","Openingsrichting","Avamissuund","Avaussuunta","Направление открывания","Oppningsriktning"]
["Zadejte šířku levého křídla (L)",{"$nulls":5},"Zadejte šířku levého křídla (L)","Enter width of left leaf (L)","Geben Sie die Breite des linken Torflügels (L) ein","Wprowadź szerokość lewego skrzydła (L)","Entrez la largeur de la feuille gauche","Vul breedte in van linker deurblad (L)","Sisesta vasaku lehe laius (V)","Kirjoita vasemman sivun leveys (V)","Введите ширину левой створки (L)","Ange vanster dorrbladsbredd (L)"]
["Šířka levého křídla (L)",{"$nulls":5},"Šířka levého křídla (L)","Width of left leaf (L)","Breite des linken Torflügels (L)","Szerokość lewego skrzydła (L)","Largeur de la feuille gauche (L)","Breedte van linker deurblad (L)","Vasaku lehe laius (V)","Vasemman sivun leveys (V)","Ширина левой створки (L)","Bredd av vanster dorrblad (L) "]
["Šířka pravého křídla ( R ) ",{"$nulls":5},"Šířka pravého křídla ( R ) ","Width of right leaf (R )","Breite des rechten Torflügels ( R)","Szerokość prawego skrzydła (R)","Largeur de la feuille droite ( R)","Breedte van rechter deurblad ( R)","Parema lehe Laius (P)","Oikean sivun leveys (O)","Ширина правой створки ( R)","Bredd av hoger dorrblad ( R)"]
["Kotící body",{"$nulls":5},"Kotící body","Fixing points","Befestigungspunkte","Punkty kontrolne","Points de fixation","Bevestigingspunten","Kinnituspunktid","Kiinnityspisteet","Точки крепления","Infastnings punkter"]
["Souměrnost křídel",{"$nulls":5},"Souměrnost křídel","Symmetry of leafs","symmetrische Torflügel","Symetria skrzydeł","Symétrie des feuilles","Symmetrie van de deurbladen","Ukselehtede sümmeetria","Ovilehtien symmetria","Симметрия створок ","Symmetri av dorrblad"]
["2LD bez přerušeného tepelného mostu",{"$nulls":5},"2LD bez přerušeného tepelného mostu","2LD without broken thermal bridge","2LD ohne thermische Trennung","2LD bez przegrody termicznej","2LD sans rupture thermique","2LD niet gebroken koude brug","2LD ilma katkestatud termilise silla","2LD ilman keskeytettyä termistä siltaa","2LD без терморазрыва"]
["Ano",{"$nulls":5},"Ano","Yes","Ja","Tak","Oui","Ja","Jah","Joo","да"]
["Ne",{"$nulls":5},"Ne","No","Nein","Nie","Non","Nee","Ei","Ei","нет"]
["2LD s přeruš. tepl. mostem ",{"$nulls":5},"2LD s přeruš. tepl. mostem ","2LD with broken thermal bribge","2LD mit thermischer Trennung","2LD ze złamanym mostkiem termicznym","2LD avec rupture de pont thermique","2LD met thermische onderbreking","2LD termoisolatsiooniga","2LD lämpöeristyksellä","2LD с терморазрывом"]
[{"$error":"#N/A"}]
[{"$error":"#N/A"}]